bitfinex/quotes_SOLUSD_20230703
["timestamp","ask_amount","ask_price","bid_price","bid_amount"]
[1688357433202,55.597,19.588,19.579,21.603]
[1688357433203,21.599,19.584,19.579,21.603]
[1688357433604,21.599,19.584,19.57,21.77]
[1688357433797,21.599,19.584,19.565,98.7431]
[1688357433798,55.0,19.583,19.565,98.7431]
[1688357433996,21.605,19.578,19.574,21.609]
[1688357434695,21.605,19.579,19.574,21.609]
[1688357436900,55.0,19.583,19.574,21.609]
[1688357437300,55.0,19.584,19.574,21.609]
[1688357438214,21.601,19.583,19.574,21.609]
[1688357444499,55.0,19.582,19.574,21.609]
[1688357444715,21.603,19.58,19.574,21.609]
[1688357446200,21.602,19.581,19.574,21.609]
[1688357450356,21.602,19.581,19.566,21.618]
[1688357450534,96.66,19.58,19.555,55.687]
[1688357450817,96.66,19.58,19.559,21.625]
[1688357450818,77.25,19.573,19.559,21.625]
[1688357451025,21.611,19.573,19.559,21.625]
[1688357451507,20.0,19.572,19.55,26.01005093]
[1688357451834,21.619,19.566,19.543,427.3255689]
[1688357452004,55.0,19.565,19.549,21.637]
[1688357452404,21.62,19.565,19.549,21.637]
[1688357452610,21.62,19.565,19.543,25.0255689]
[1688357452823,3.0,19.562,19.53,101.736]
[1688357453120,77.328,19.553,19.531,21.657]
[1688357453334,77.328,19.553,19.52,29.60202516]
[1688357453335,21.641,19.546,19.528,21.66]
[1688357453627,21.641,19.546,19.524,21.664]
[1688357453937,21.649,19.539,19.524,21.664]
[1688357454506,21.649,19.539,19.521,21.668]
[1688357455023,55.0,19.538,19.521,21.668]
[1688357455317,55.0,19.538,19.516,76.31201781]
[1688357455318,21.655,19.533,19.518,21.671]
[1688357455530,21.663,19.526,19.516,47.126697]
[1688357455707,21.667,19.523,19.516,47.126697]
[1688357455911,21.667,19.523,19.501,51.22]
[1688357456120,21.667,19.523,19.504,21.687]
[1688357456822,21.663,19.526,19.514,21.675]
[1688357457027,55.742,19.537,19.514,21.675]
[1688357457227,21.656,19.533,19.519,21.67]
[1688357457413,21.73,19.54,19.51,108.85]
[1688357457414,21.66,19.529,19.516,21.674]
[1688357457932,21.66,19.529,19.503,55.835]
[1688357458231,21.66,19.529,19.484,278.26903178]
[1688357458232,21.676,19.515,19.492,55.867]
[1688357458429,21.77,19.51,19.486,55.885]
[1688357458725,76.683,19.509,19.492,21.7]
[1688357459114,43.54,19.51,19.492,21.7]
[1688357459115,21.77,19.51,19.492,21.7]
[1688357459329,21.64,19.52,19.492,21.7]
[1688357459330,21.672,19.519,19.492,21.7]
[1688357459509,21.672,19.519,19.493,591.3]
[1688357459715,43.8,19.54,19.509,3.0]
[1688357459920,21.654,19.534,19.515,77.477]
[1688357460231,3.0,19.552,19.51,21.85]
[1688357460232,55.697,19.553,19.521,77.452]
[1688357460422,528.67502393,19.571,19.521,77.452]
[1688357460423,21.635,19.552,19.53,43.82]
[1688357460618,21.631,19.556,19.542,21.645]
[1688357460825,24.624,19.562,19.542,21.645]
[1688357461017,21.626,19.56,19.542,21.645]
[1688357461211,43.346,19.56,19.542,21.645]
[1688357461416,65.256,19.56,19.539,21.648]
[1688357461921,65.256,19.56,19.531,55.0]
[1688357461922,21.626,19.56,19.546,21.641]
[1688357462124,21.91,19.57,19.542,55.723]
[1688357462125,21.623,19.563,19.542,55.723]
[1688357462314,21.623,19.563,19.531,55.0]
[1688357462315,21.76,19.56,19.531,55.0]
[1688357462510,21.633,19.554,19.534,21.654]
[1688357462925,3.0,19.572,19.53,55.759]
[1688357462926,21.91,19.555,19.543,21.643]
[1688357463316,21.631,19.555,19.539,21.648]
[1688357463512,21.631,19.555,19.525,55.772]
[1688357463828,21.631,19.555,19.532,21.656]
[1688357464417,21.631,19.555,19.525,0.06347926]
[1688357464418,21.72,19.55,19.529,21.659]
[1688357464737,21.643,19.544,19.525,0.06347926]
[1688357464921,21.643,19.544,19.525,21.72747926]
[1688357465241,21.643,19.544,19.525,0.06347926]
[1688357465413,20.0,19.543,19.525,0.06347926]
[1688357465730,10.94,19.53,19.525,0.06347926]
[1688357465923,179.172,19.529,19.525,0.06347926]
[1688357466415,75.0,19.528,19.525,0.06347926]
[1688357466724,75.0,19.528,19.5,21.692]
[1688357466938,77.46,19.52,19.5,21.692]
[1688357467132,77.46,19.52,19.49,66.742]
[1688357467133,77.493,19.512,19.491,21.701]
[1688357467339,77.493,19.512,19.49,10.87]
[1688357467340,77.493,19.512,19.49,32.573]
[1688357467519,21.686,19.505,19.49,21.703]
[1688357467714,21.686,19.505,19.484,21.709]
[1688357467920,21.695,19.497,19.481,21.712]
[1688357468125,55.827,19.507,19.481,21.712]
[1688357468428,10.92,19.52,19.491,21.701]
[1688357468429,21.689,19.503,19.491,21.701]
[1688357468627,21.689,19.503,19.48,10.85]
[1688357468628,21.693,19.499,19.488,21.705]
[1688357468830,77.542,19.499,19.471,55.929]
[1688357469013,77.542,19.499,19.47,10.94]
[1688357469014,21.693,19.499,19.48,10.85]
[1688357469216,21.689,19.503,19.491,21.701]
[1688357469419,55.816,19.511,19.491,21.701]
[1688357469621,21.682,19.509,19.491,21.701]
[1688357469841,55.783,19.522,19.491,77.572]
[1688357470040,21.669,19.521,19.492,20.0]
[1688357470330,3.0,19.533,19.492,20.0]
[1688357470331,55.751,19.534,19.5,32.651]
[1688357470547,55.766,19.528,19.515,21.675]
[1688357470716,55.766,19.528,19.52,10.94]
[1688357470916,21.648,19.54,19.525,21.663]
[1688357471115,10.95,19.56,19.525,21.663]
[1688357471116,55.7,19.552,19.525,21.663]
[1688357471323,21.645,19.543,19.531,21.657]
[1688357471730,21.645,19.543,19.52,10.94]
[1688357471731,21.645,19.543,19.527,21.662]
[1688357472041,197.18,19.56,19.53,10.96]
[1688357472042,21.641,19.546,19.53,10.96]
[1688357472244,21.637,19.549,19.534,21.653]
[1688357472464,55.675,19.56,19.535,55.0]
[1688357472740,21.639,19.548,19.538,21.649]
[1688357472951,21.636,19.551,19.538,21.649]
[1688357473131,21.633,19.554,19.543,21.644]
[1688357473519,21.629,19.557,19.543,21.644]
[1688357473731,21.626,19.56,19.543,21.644]
[1688357473936,21.623,19.563,19.552,21.634]
[1688357474137,21.623,19.563,19.54,10.96]
[1688357474519,21.623,19.563,19.546,21.64]
[1688357474725,21.625,19.56,19.551,21.635]
[1688357474920,55.64,19.572,19.551,21.635]
[1688357474921,21.623,19.564,19.551,21.635]
[1688357475144,21.627,19.559,19.548,21.638]
[1688357476049,55.0,19.558,19.545,21.641]
[1688357476236,21.632,19.555,19.545,21.641]
[1688357476540,55.0,19.554,19.545,21.641]
[1688357476735,21.634,19.552,19.545,21.641]
[1688357476972,10.91,19.58,19.545,21.641]
[1688357477155,3.0,19.573,19.545,21.641]
[1688357477328,21.615,19.57,19.545,21.641]
[1688357477947,21.615,19.57,19.546,55.0]
[1688357478245,43.256,19.57,19.553,21.633]
[1688357478729,43.256,19.57,19.55,21.636]
[1688357479428,20.0,19.569,19.55,21.636]
[1688357479740,21.622,19.564,19.55,21.636]
[1688357480331,20.0,19.563,19.55,21.636]
[1688357480645,20.0,19.563,19.543,21.644]
[1688357480646,21.632,19.554,19.543,21.644]
[1688357480827,20.0,19.553,19.531,55.755]
[1688357481032,21.632,19.554,19.541,21.646]
[1688357481733,21.632,19.554,19.53,10.91]
[1688357481734,21.632,19.554,19.538,21.649]
[1688357481930,21.632,19.554,19.514,428.52830124]
[1688357481931,21.643,19.544,19.529,21.659]
[1688357482137,21.643,19.544,19.527,21.661]
[1688357482343,21.649,19.539,19.528,21.66]
[1688357482640,21.649,19.539,19.53,21.658]
[1688357482862,21.649,19.539,19.527,21.661]
[1688357483034,55.0,19.538,19.527,21.661]
[1688357483344,21.652,19.536,19.527,21.661]
[1688357483549,21.649,19.539,19.527,21.661]
[1688357484124,21.649,19.539,19.523,21.665]
[1688357484350,21.656,19.532,19.515,21.674]
[1688357484659,21.656,19.532,19.502,85.838]
[1688357484660,10.86,19.53,19.502,85.838]
[1688357484945,10.86,19.53,19.497,198.3334]
[1688357484946,21.668,19.522,19.506,21.685]
[1688357485550,21.668,19.522,19.496,55.856]
[1688357485551,55.0,19.521,19.496,55.856]
[1688357485752,21.681,19.51,19.491,55.869]
[1688357487036,55.0,19.509,19.493,21.699]
[1688357487359,21.687,19.505,19.493,21.699]
[1688357488349,55.802,19.516,19.493,21.699]
[1688357488556,75.0,19.515,19.493,21.699]
[1688357488929,21.684,19.508,19.497,21.695]
[1688357489539,55.0,19.512,19.497,21.694]
[1688357489748,21.678,19.513,19.498,20.0]
[1688357489955,21.678,19.513,19.502,21.689]
[1688357490137,21.675,19.515,19.502,21.689]
[1688357491844,21.673,19.517,19.502,21.689]
[1688357492046,21.672,19.518,19.503,55.0]
[1688357492353,21.672,19.518,19.504,55.833]
[1688357492536,21.672,19.518,19.505,55.0]
[1688357493141,21.672,19.518,19.507,21.683]
[1688357493339,21.669,19.521,19.508,75.0]
[1688357493540,21.669,19.521,19.511,21.679]
[1688357493740,55.758,19.531,19.512,55.0]
[1688357493948,21.665,19.525,19.517,21.672]
[1688357494953,21.665,19.525,19.512,55.0]
[1688357494954,21.665,19.525,19.507,55.823]
[1688357495138,55.0,19.524,19.508,75.0]
[1688357495452,21.667,19.523,19.513,21.677]
[1688357495645,21.664,19.525,19.513,21.677]
[1688357503454,21.664,19.525,19.514,55.0]
[1688357503643,21.664,19.525,19.517,21.673]
[1688357504252,21.664,19.525,19.515,21.674]
[1688357504462,21.664,19.525,19.515,21.675]
[1688357505159,21.664,19.525,19.513,21.676]
[1688357505356,55.0,19.524,19.513,21.676]
[1688357505548,21.669,19.521,19.513,21.676]
[1688357505950,21.668,19.522,19.513,21.676]
[1688357506941,21.668,19.522,19.516,21.674]
[1688357507850,21.666,19.524,19.516,21.674]
[1688357508166,213.266,19.531,19.516,21.674]
[1688357508167,21.662,19.527,19.516,21.674]
[1688357509449,21.662,19.527,19.516,77.474]
[1688357509651,21.662,19.527,19.517,55.0]
[1688357509854,21.662,19.527,19.52,21.67]
[1688357510857,63.69254049,19.533,19.52,21.67]
[1688357511046,20.0,19.532,19.52,21.67]
[1688357511659,55.0,19.531,19.52,21.67]
[1688357511855,20.0,19.53,19.52,21.67]
[1688357512248,21.661,19.528,19.52,21.67]
[1688357513460,41.659,19.53,19.52,21.67]
[1688357513769,153.3,19.552,19.52,21.67]
[1688357513770,21.654,19.534,19.52,21.67]
[1688357513980,21.654,19.534,19.521,55.0]
[1688357513981,21.655,19.534,19.521,55.0]
[1688357514152,21.655,19.534,19.524,21.664]
[1688357516363,55.736,19.539,19.524,21.664]
[1688357516364,21.653,19.535,19.524,21.664]
[1688357517562,101.687,19.541,19.524,21.664]
[1688357517563,21.651,19.537,19.524,21.664]
[1688357517869,21.651,19.537,19.525,55.0]
[1688357518074,7.88257801,19.544,19.528,21.66]
[1688357518369,21.648,19.54,19.528,21.66]
[1688357525155,0.06347926,19.539,19.528,21.66]
[1688357525480,21.71247926,19.539,19.528,21.66]
[1688357528374,21.71247926,19.539,19.509,99.9991]
[1688357528375,55.0,19.538,19.509,99.9991]
[1688357528569,55.0,19.538,19.52,55.787]
[1688357528570,21.659,19.53,19.52,55.787]
[1688357529254,21.659,19.53,19.52,21.67]
[1688357529255,0.06347926,19.529,19.52,21.67]
[1688357529452,21.663,19.527,19.52,21.67]
[1688357529671,0.06347926,19.526,19.52,21.67]
[1688357529979,0.06347926,19.526,19.513,101.825]
[1688357529980,21.665,19.525,19.518,21.671]
[1688357530271,21.667,19.523,19.518,21.671]
[1688357530477,0.06347926,19.522,19.518,21.671]
[1688357530972,21.73047926,19.522,19.518,21.671]
[1688357531166,0.06347926,19.522,19.518,21.671]
[1688357532278,0.06347926,19.522,19.519,55.0]
[1688357532475,0.06347926,19.522,19.52,21.67]
[1688357537980,0.06347926,19.522,19.518,21.671]
[1688357538272,0.06347926,19.522,19.516,21.673]
[1688357538273,21.73147926,19.522,19.516,21.673]
[1688357538863,20.0,19.521,19.504,101.875]
[1688357539170,21.674,19.516,19.51,21.68]
[1688357539567,55.0,19.521,19.494,10.83719922]
[1688357539568,21.677,19.514,19.494,10.83719922]
[1688357539774,55.0,19.521,19.499,77.54]
[1688357539775,21.684,19.508,19.499,77.54]
[1688357539971,21.682,19.509,19.499,77.54]
[1688357540173,21.682,19.509,19.502,21.689]
[1688357540370,0.06347926,19.508,19.502,21.689]
[1688357541093,21.684,19.507,19.5,20.0]
[1688357541383,0.06347926,19.506,19.502,21.689]
[1688357542183,0.06347926,19.506,19.502,77.529]
[1688357542487,0.06347926,19.506,19.502,21.689]
[1688357543869,0.06347926,19.506,19.502,123.575]
[1688357545869,0.06347926,19.506,19.503,55.0]
[1688357546088,0.06347926,19.506,19.504,77.521]
[1688357546388,0.06347926,19.506,19.505,76.686]
[1688357547169,0.06347926,19.506,19.505,21.686]
[1688357551186,0.06347926,19.506,19.505,123.557]
[1688357554297,0.06347926,19.506,19.505,21.686]
[1688357555411,0.06347926,19.506,19.5,55.845]
[1688357555608,0.06347926,19.506,19.497,101.908]
[1688357555609,0.06347926,19.506,19.497,55.853]
[1688357555797,21.74847926,19.506,19.501,21.69]
[1688357556197,21.74847926,19.506,19.5,21.692]
[1688357557507,0.06347926,19.506,19.5,21.692]
[1688357559600,21.74847926,19.506,19.5,21.692]
[1688357559906,21.74847926,19.506,19.499,21.693]
[1688357560918,21.74847926,19.506,19.487,101.963]
[1688357560919,20.0,19.505,19.487,101.963]
[1688357561211,20.0,19.505,19.477,402.3]
[1688357561212,77.539,19.5,19.478,55.907]
[1688357561392,77.566,19.493,19.484,21.709]
[1688357561592,21.704,19.49,19.483,21.711]
[1688357561802,21.708,19.486,19.482,21.712]
[1688357562009,0.06347926,19.485,19.482,21.712]
[1688357568111,0.06347926,19.485,19.483,55.0]
[1688357568322,0.06347926,19.485,19.484,77.602]
[1688357568700,0.06347926,19.485,19.484,21.71]
[1688357571921,0.06347926,19.485,19.484,76.71]
[1688357572123,101.883,19.503,19.484,76.71]
[1688357572315,10.96,19.52,19.484,76.71]
[1688357572316,55.836,19.504,19.485,75.0]
[1688357572618,55.828,19.507,19.49,190.48]
[1688357572825,21.688,19.504,19.491,55.0]
[1688357573007,21.686,19.506,19.494,21.697]
[1688357575313,21.686,19.506,19.498,77.545]
[1688357575707,7.99171084,19.513,19.498,77.545]
[1688357575708,3.0,19.534,19.498,77.545]
[1688357575911,55.811,19.513,19.498,77.545]
[1688357576421,21.683,19.509,19.498,21.694]
[1688357577527,55.0,19.508,19.498,21.694]
[1688357577721,21.686,19.505,19.498,21.694]
[1688357582426,21.686,19.505,19.494,55.861]
[1688357582631,21.686,19.505,19.491,55.87]
[1688357582919,21.686,19.505,19.495,21.697]
[1688357583629,55.0,19.504,19.495,21.697]
[1688357583932,21.69,19.502,19.495,21.697]
[1688357586419,21.69,19.502,19.495,77.557]
[1688357587524,21.69,19.502,19.495,21.697]
[1688357587929,77.53,19.502,19.49,55.874]
[1688357588228,77.53,19.502,19.489,101.954]
[1688357588229,77.53,19.502,19.495,21.697]
[1688357588611,21.689,19.503,19.495,21.697]
[1688357589131,21.687,19.504,19.495,21.697]
[1688357595532,21.684,19.508,19.495,21.697]
[1688357595827,21.684,19.508,19.486,99.6518]
[1688357595828,21.682,19.509,19.5,77.534]
[1688357598320,77.502,19.509,19.5,21.691]
[1688357598839,21.682,19.509,19.5,77.537]
[1688357599330,21.681,19.51,19.5,77.537]
[1688357603340,21.68,19.511,19.5,77.537]
[1688357604752,21.679,19.512,19.5,77.537]
[1688357612049,55.808,19.518,19.5,77.537]
[1688357612233,55.799,19.517,19.5,99.467]
[1688357613145,21.676,19.514,19.5,99.467]
[1688357613346,21.676,19.514,19.5,77.537]
[1688357616844,101.801,19.519,19.501,55.0]
[1688357617040,21.677,19.514,19.506,77.513]
[1688357617954,21.677,19.514,19.506,21.685]
[1688357620249,21.93,19.52,19.506,21.685]
[1688357620250,55.779,19.524,19.506,179.379]
[1688357620443,101.764,19.526,19.51,109.68]
[1688357620444,21.664,19.526,19.51,109.68]
[1688357620644,21.664,19.526,19.514,179.298]
[1688357620845,21.66,19.529,19.514,179.298]
[1688357621052,21.66,19.529,19.515,55.0]
[1688357621246,21.66,19.529,19.519,77.461]
[1688357622355,55.75,19.533,19.519,77.461]
[1688357622356,21.659,19.53,19.519,77.461]
[1688357623077,21.657,19.532,19.519,77.461]
[1688357623481,101.712,19.536,19.515,55.0]
[1688357623762,21.657,19.532,19.519,77.461]
[1688357627053,55.0,19.531,19.519,77.461]
[1688357627258,21.661,19.528,19.519,77.461]
[1688357628264,21.66,19.529,19.519,77.461]
[1688357629155,21.659,19.53,19.519,77.461]
[1688357640756,21.659,19.53,19.519,21.67]
[1688357640960,55.0,19.529,19.519,21.67]
[1688357641166,21.663,19.526,19.519,21.67]
[1688357643666,21.662,19.527,19.519,21.67]
[1688357650867,21.661,19.528,19.519,21.67]
[1688357651485,21.659,19.53,19.519,21.67]
[1688357653677,21.657,19.532,19.524,77.441]
[1688357656077,21.655,19.533,19.524,77.441]
[1688357659192,55.0,19.532,19.524,77.441]
[1688357659783,76.657,19.532,19.524,77.441]
[1688357660390,21.655,19.533,19.524,77.441]
[1688357663591,21.654,19.534,19.524,77.441]
[1688357668598,55.0,19.533,19.524,77.441]
[1688357668898,21.657,19.532,19.524,77.441]
[1688357669396,63.734711,19.538,19.524,77.441]
[1688357669587,21.648,19.54,19.525,55.0]
[1688357669893,21.648,19.54,19.529,179.163]
[1688357670894,21.65,19.538,19.529,179.163]
[1688357673200,76.649,19.539,19.529,179.163]
[1688357673402,21.649,19.539,19.529,179.163]
[1688357677513,21.648,19.54,19.529,179.163]
[1688357677695,21.645,19.543,19.529,179.163]
[1688357677897,21.645,19.543,19.53,75.0]
[1688357678210,21.645,19.543,19.533,179.124]
[1688357682416,55.712,19.547,19.533,179.124]
[1688357682711,21.643,19.544,19.533,21.654]
[1688357683006,75.0,19.543,19.533,21.654]
[1688357683202,21.647,19.54,19.528,55.765]
[1688357683406,55.0,19.539,19.531,21.656]
[1688357683709,21.651,19.537,19.531,21.656]
[1688357684909,77.391,19.537,19.529,21.659]
[1688357685113,77.391,19.537,19.524,55.776]
[1688357685114,55.0,19.536,19.524,55.776]
[1688357685313,21.656,19.533,19.527,21.662]
[1688357686192,21.659,19.53,19.524,21.664]
[1688357691300,101.722,19.534,19.524,21.664]
[1688357691507,21.659,19.53,19.524,77.441]
[1688357691907,55.748,19.535,19.524,77.441]
[1688357692112,21.658,19.531,19.524,77.441]
[1688357695314,21.658,19.531,19.524,21.664]
[1688357695511,55.751,19.534,19.524,21.664]
[1688357695820,76.656,19.533,19.524,21.664]
[1688357696021,21.656,19.533,19.524,21.664]
[1688357701123,21.654,19.534,19.524,21.664]
[1688357704312,77.402,19.534,19.524,21.664]
[1688357705119,21.654,19.534,19.524,21.664]
[1688357709915,21.653,19.536,19.524,21.664]
[1688357710121,55.726,19.543,19.53,21.69]
[1688357710311,21.646,19.542,19.536,21.652]
[1688357710515,21.644,19.543,19.536,21.652]
[1688357711122,21.644,19.543,19.536,77.395]
[1688357711840,21.643,19.544,19.536,77.395]
[1688357712525,21.64,19.547,19.536,77.395]
[1688357718636,55.7,19.553,19.536,77.395]
[1688357718817,21.638,19.549,19.537,55.0]
[1688357719140,21.638,19.549,19.54,21.647]
[1688357722933,21.638,19.549,19.532,198.8771]
[1688357723164,55.0,19.548,19.539,21.648]
[1688357723437,77.358,19.546,19.539,21.648]
[1688357723823,21.642,19.546,19.539,21.648]
[1688357726245,21.642,19.546,19.534,101.717]
[1688357726246,21.642,19.546,19.538,21.65]
[1688357730850,21.642,19.546,19.538,77.387]
[1688357733850,77.356,19.546,19.538,21.65]
[1688357738140,55.0,19.545,19.537,21.65]
[1688357738445,21.645,19.543,19.534,55.748]
[1688357738647,21.645,19.543,19.537,21.65]
[1688357739362,20.0,19.542,19.531,55.756]
[1688357739536,21.652,19.537,19.529,55.763]
[1688357739736,21.652,19.537,19.529,77.423]
[1688357739960,21.652,19.537,19.529,21.66]
[1688357740648,21.652,19.537,19.521,91.6397]
[1688357740849,21.652,19.537,19.527,21.661]
[1688357741048,21.652,19.537,19.525,21.663]
[1688357741256,55.0,19.536,19.525,21.663]
[1688357741450,77.407,19.533,19.525,21.663]
[1688357746754,77.407,19.533,19.521,55.785]
[1688357746755,55.0,19.532,19.524,21.665]
[1688357747067,21.659,19.53,19.524,21.665]
[1688357747581,55.0,19.529,19.519,21.67]
[1688357747740,55.0,19.529,19.514,126.85145646]
[1688357747741,77.434,19.526,19.514,25.02945646]
[1688357747944,77.434,19.526,19.518,21.671]
[1688357748149,21.663,19.526,19.518,21.671]
[1688357751056,21.663,19.526,19.519,55.0]
[1688357751248,21.663,19.526,19.521,21.668]
[1688357751955,21.661,19.528,19.521,21.668]
[1688357752155,21.66,19.529,19.523,21.665]
[1688357753459,21.659,19.53,19.523,21.665]
[1688357753867,101.706,19.537,19.523,21.665]
[1688357753868,21.656,19.532,19.523,21.665]
[1688357758565,21.654,19.534,19.523,21.665]
[1688357758771,21.652,19.536,19.523,21.665]
[1688357759070,21.652,19.536,19.527,179.183]
[1688357760960,21.652,19.536,19.527,77.428]
[1688357761161,21.652,19.536,19.527,21.661]
[1688357764857,21.652,19.536,19.527,77.429]
[1688357767470,77.395,19.536,19.527,21.661]
[1688357769876,21.652,19.536,19.527,21.661]
[1688357770964,21.652,19.536,19.528,55.0]
[1688357771167,21.652,19.536,19.53,21.658]
[1688357771566,55.727,19.542,19.53,21.658]
[1688357771768,21.648,19.54,19.53,43.378]
[1688357772382,21.646,19.542,19.53,43.378]
[1688357773677,119.41854961,19.547,19.53,43.378]
[1688357773877,21.644,19.543,19.531,55.0]
[1688357774070,21.644,19.543,19.534,179.119]
[1688357774972,55.705,19.55,19.535,55.0]
[1688357775177,21.641,19.546,19.539,21.648]
[1688357778569,29.62654961,19.546,19.539,21.648]
[1688357779882,21.641,19.546,19.539,21.648]
[1688357781076,21.641,19.546,19.539,77.382]
[1688357782390,109.2,19.56,19.54,20.0]
[1688357782391,21.635,19.551,19.54,20.0]
[1688357782592,21.635,19.551,19.543,77.366]
[1688357783284,21.635,19.551,19.543,21.644]
[1688357785995,21.634,19.552,19.543,21.644]
[1688357786177,21.633,19.553,19.543,21.644]
[1688357793098,55.0,19.552,19.543,21.644]
[1688357793291,21.637,19.55,19.543,21.644]
[1688357796491,21.635,19.551,19.543,21.644]
[1688357796792,21.634,19.553,19.543,21.644]
[1688357797191,101.594,19.559,19.543,21.644]
[1688357797192,55.679,19.559,19.543,21.644]
[1688357797500,55.679,19.559,19.544,55.0]
[1688357797808,21.631,19.556,19.548,77.345]
[1688357798888,55.667,19.563,19.548,77.345]
[1688357799086,21.625,19.561,19.553,21.633]
[1688357799398,21.628,19.558,19.553,21.633]
[1688357799708,21.626,19.56,19.553,21.633]
[1688357800794,21.624,19.561,19.553,21.633]
[1688357802914,77.309,19.558,19.549,21.636]
[1688357803154,77.309,19.558,19.544,157.383]
[1688357803155,21.632,19.554,19.547,21.639]
[1688357803290,21.632,19.554,19.542,97.7519]
[1688357803493,21.632,19.554,19.546,21.64]
[1688357804302,21.632,19.554,19.545,21.642]
[1688357808197,21.632,19.554,19.538,55.734]
[1688357808394,77.341,19.55,19.542,21.644]
[1688357808594,77.341,19.55,19.535,263.73359922]
[1688357808794,77.341,19.55,19.539,21.648]
[1688357810708,55.0,19.549,19.538,21.65]
[1688357810898,77.356,19.546,19.538,21.65]
[1688357813405,21.641,19.546,19.538,21.65]
[1688357815009,77.355,19.546,19.538,21.65]
[1688357815216,77.355,19.546,19.535,117.0944]
[1688357815410,77.355,19.546,19.533,21.654]
[1688357815611,55.0,19.545,19.533,21.654]
[1688357815807,77.373,19.542,19.533,21.654]
[1688357816814,21.646,19.542,19.533,21.654]
[1688357820504,77.395,19.536,19.528,21.66]
[1688357821321,77.395,19.536,19.527,21.662]
[1688357822512,77.395,19.536,19.526,21.663]
[1688357822706,77.395,19.536,19.525,21.664]
[1688357830727,77.395,19.536,19.525,77.438]
[1688357830926,77.395,19.536,19.526,55.0]
[1688357831130,77.395,19.536,19.529,21.66]